fUST/lending_fUST_20250522
["ID","MTS","AMOUNT","RATE_DAILY","PERIOD"]
[361881234,1747863037796,-430.0,0.00024109,2]
[361881235,1747863037806,-707.03,0.00024109,2]
[361881236,1747863037815,-430.0,0.00024109,2]
[361881237,1747863037824,-430.0,0.00024109,2]
[361881238,1747863037834,-701.35,0.00024109,2]
[361881239,1747863037844,-204.67053384,0.0002415,10]
[361881240,1747863037853,-204.67053384,0.00024275,10]
[361881241,1747863037863,-430.0,0.00024382,2]
[361881242,1747863037873,-430.0,0.00024382,2]
[361881243,1747863037883,-430.0,0.00024382,2]
[361881244,1747863037894,-524.3,0.00024382,2]
[361881245,1747863037904,-430.0,0.00024382,2]
[361881246,1747863037914,-418.86,0.00024383,2]
[361881247,1747863037923,-232.11,0.00024383,2]
[361881248,1747863037934,-430.0,0.00024383,2]
[361881249,1747863037943,-220.08,0.00024383,2]
[361881250,1747863037954,-430.0,0.00024383,2]
[361881251,1747863037964,-508.77,0.00024383,2]
[361881252,1747863037973,-430.0,0.00024383,2]
[361881253,1747863037983,-430.0,0.00024383,2]
[361881254,1747863037994,-568.98,0.00024383,2]
[361881255,1747863038004,-707.03,0.00024383,2]
[361881256,1747863038014,-430.0,0.00024383,2]
[361881257,1747863038023,-157.11,0.00024383,2]
[361881259,1747863038033,-701.35,0.00024383,2]
[361881260,1747863038042,-204.67053384,0.000244,11]
[361881261,1747863038051,-204.67053384,0.00024525,11]
[361881262,1747863038061,-204.67053384,0.0002465,11]
[361881263,1747863038071,-430.0,0.00024656,2]
[361881264,1747863038080,-430.0,0.00024656,2]
[361881265,1747863038090,-430.0,0.00024656,2]
[361881266,1747863038100,-524.3,0.00024656,2]
[361881267,1747863038110,-430.0,0.00024656,2]
[361881268,1747863038119,-430.0,0.00024657,2]
[361881269,1747863038129,-430.0,0.00024657,2]
[361881270,1747863038138,-430.0,0.00024657,2]
[361881271,1747863038148,-430.0,0.00024657,2]
[361881272,1747863038157,-707.03,0.00024657,2]
[361881273,1747863038167,-430.0,0.00024657,2]
[361881274,1747863038177,-701.35,0.00024657,2]
[361881275,1747863038186,-500.0,0.00024658,2]
[361881276,1747863038196,-500.0,0.00024658,2]
[361881277,1747863038205,-500.0,0.00024658,2]
[361881278,1747863038214,-500.0,0.00024658,2]
[361881279,1747863038223,-500.0,0.00024658,2]
[361881280,1747863038233,-500.0,0.00024658,2]
[361881281,1747863038242,-500.0,0.00024658,2]
[361881283,1747863038252,-500.0,0.00024658,2]
[361881284,1747863038262,-500.0,0.00024658,2]
[361881285,1747863038271,-500.0,0.00024658,2]
[361881286,1747863038280,-500.0,0.00024658,2]
[361881287,1747863038290,-500.0,0.00024658,2]
[361881288,1747863038299,-500.0,0.00024658,2]
[361881289,1747863038309,-500.0,0.00024658,2]
[361881290,1747863038319,-500.0,0.00024658,2]
[361881291,1747863038329,-618.59898165,0.00024658,2]
[361881292,1747863038338,-12560.59532039,0.0002469,2]
[361881293,1747863038347,-467.02,0.000247,2]
[361881294,1747863038357,-151.0,0.000247,8]
[361881295,1747863038367,-204.67053384,0.00024775,11]
[361881296,1747863038376,-737.01367193,0.00024817,2]
[361881297,1747863038386,-435.0,0.0002486,120]
[361881298,1747863038396,-435.0,0.0002487,120]
[361881299,1747863038406,-500.0,0.00024873,2]
[361881300,1747863038416,-435.0,0.0002488,120]
[361881301,1747863038426,-522112.055619,0.000249,2]
[361881302,1747863038435,-204.67053384,0.000249,12]
[361881303,1747863038444,-430.0,0.0002493,2]
[361881304,1747863038454,-430.0,0.0002493,2]
[361881305,1747863038464,-430.0,0.0002493,2]
[361881306,1747863038473,-524.3,0.0002493,2]
[361881307,1747863038483,-430.0,0.0002493,2]
[361881308,1747863038492,-430.0,0.00024931,2]
[361881309,1747863038501,-430.0,0.00024931,2]
[361881310,1747863038511,-445.81,0.00024931,2]
[361881311,1747863038521,-430.0,0.00024931,2]
[361881313,1747863038531,-707.03,0.00024931,2]
[361881315,1747863038542,-430.0,0.00024931,2]
[361881317,1747863038552,-701.35,0.00024931,2]
[361881318,1747863038561,-543.28424819,0.00025009,2]
[361881320,1747863038570,-204.67053384,0.00025025,12]
[361881322,1747863038580,-204.67053384,0.0002515,12]
[361881324,1747863038590,-430.0,0.00025204,2]
[361881326,1747863038600,-430.0,0.00025204,2]
[361881328,1747863038610,-430.0,0.00025204,2]
[361881330,1747863038619,-524.3,0.00025204,2]
[361881331,1747863038628,-361.1,0.00025204,2]
[361881332,1747863038639,-430.0,0.00025205,2]
[361881334,1747863038648,-430.0,0.00025205,2]
[361881336,1747863038658,-430.0,0.00025205,2]
[361881338,1747863038670,-707.03,0.00025205,2]
[361881340,1747863038679,-430.0,0.00025205,2]
[361881341,1747863038689,-701.35,0.00025205,2]
[361881342,1747863038701,-174.97929206,0.00025261,2]
[361881344,1747863038710,-204.67053384,0.00025275,12]
[361881346,1747863038720,-161.133461,0.00025288,4]
[361881348,1747863038730,-204.67053384,0.000254,13]
[361881350,1747863038739,-543.28424819,0.00025461,2]
[361881352,1747863038750,-430.0,0.00025478,2]
[361881354,1747863038759,-430.0,0.00025478,2]
[361881356,1747863038768,-430.0,0.00025478,2]
[361881358,1747863038777,-524.3,0.00025478,2]
[361881359,1747863038787,-430.0,0.00025479,2]
[361881360,1747863038796,-430.0,0.00025479,2]
[361881361,1747863038806,-430.0,0.00025479,2]
[361881362,1747863038816,-707.03,0.00025479,2]
[361881363,1747863038825,-547.87,0.00025479,2]
[361881364,1747863038834,-701.35,0.00025479,2]
[361881365,1747863038844,-204.67053384,0.00025525,13]
[361881366,1747863038854,-430.0,0.00025588,2]
[361881367,1747863038863,-387.63,0.000256,31]
[361881368,1747863038873,-387.63,0.000256,31]
[361881369,1747863038882,-387.63,0.000256,31]
[361881370,1747863038891,-387.63,0.000256,31]
[361881371,1747863038901,-387.63,0.000256,31]
[361881372,1747863038910,-387.63,0.000256,31]
[361881373,1747863038920,-387.63,0.000256,31]
[361881374,1747863038930,-387.63,0.000256,31]
[361881375,1747863038940,-387.63,0.000256,31]
[361881376,1747863038950,-387.63,0.000256,31]
[361881377,1747863038959,-387.63,0.000256,31]
[361881378,1747863038969,-387.63,0.000256,31]
[361881379,1747863038979,-387.63,0.000256,31]
[361881380,1747863038988,-387.63,0.000256,31]
[361881381,1747863038998,-387.63,0.000256,31]
[361881382,1747863039008,-387.63,0.000256,31]
[361881383,1747863039017,-54355.62390672,0.00025606,2]
[361881384,1747863039027,-204.67053384,0.0002565,13]
[361881385,1747863039036,-2000.0,0.000257,2]
[361881386,1747863039046,-543.28424819,0.00025735,2]
[361881387,1747863039055,-262.8,0.00025752,2]
[361881388,1747863039065,-181.44,0.00025752,2]
[361881389,1747863039075,-430.0,0.00025752,2]
[361881390,1747863039085,-524.3,0.00025752,2]
[361881391,1747863039094,-500.0,0.00025753,9]
[361881392,1747863039104,-562.28190819,0.00025753,9]
[361881393,1747863039113,-151.0,0.00025753,2]
[361881394,1747863039123,-344.38,0.00025753,2]
[361881395,1747863039133,-151.0,0.00025753,2]
[361881396,1747863039143,-430.0,0.00025753,2]
[361881397,1747863039152,-430.0,0.00025753,2]
[361881398,1747863039162,-707.03,0.00025753,2]
[361881399,1747863039171,-435.0,0.0002576,120]
[361881400,1747863039181,-435.0,0.0002577,120]
[361881401,1747863039190,-160.0,0.00025774,3]
[361881402,1747863039200,-160.0,0.00025774,5]
[361881403,1747863039210,-204.67053384,0.00025775,13]
[361881404,1747863039219,-694.25,0.00025776,7]
[361881405,1747863039229,-12969.42555771,0.00025788,2]
[361881406,1747863039238,-387.63,0.000258,31]
[361881407,1747863039248,-387.63,0.000258,31]
[361881408,1747863039257,-387.63,0.000258,31]
[361881409,1747863039267,-387.63,0.000258,31]
[361881410,1747863039276,-387.63,0.000258,31]
[361881411,1747863039285,-387.63,0.000258,31]
[361881412,1747863039295,-387.63,0.000258,31]
[361881413,1747863039305,-387.63,0.000258,31]
[361881414,1747863039314,-387.63,0.000258,31]
[361881415,1747863039324,-387.63,0.000258,31]
[361881416,1747863039333,-387.63,0.000258,31]
[361881417,1747863039343,-387.63,0.000258,31]
[361881418,1747863039352,-387.63,0.000258,31]
[361881419,1747863039363,-387.63,0.000258,31]
[361881420,1747863039372,-387.63,0.000258,31]
[361881421,1747863039382,-387.63,0.000258,31]
[361881422,1747863039391,-387.63,0.000258,31]
[361881423,1747863039401,-387.63,0.000258,31]
[361881424,1747863039410,-387.63,0.000258,31]
[361881425,1747863039420,-387.63,0.000258,31]
[361881426,1747863039429,-387.63,0.000258,31]
[361881427,1747863039438,-387.63,0.000258,31]
[361881428,1747863039448,-387.63,0.000258,31]
[361881429,1747863039459,-387.63,0.000258,31]
[361881430,1747863039468,-500.0,0.00025833,20]
[361881431,1747863039477,-500.0,0.00025833,20]
[361881432,1747863039488,-500.0,0.00025833,20]
[361881433,1747863039499,-500.0,0.00025833,20]
[361881434,1747863039510,-500.0,0.00025833,20]
[361881435,1747863039519,-500.0,0.00025833,20]
[361881436,1747863039529,-578.64735556,0.00025833,20]
[361881437,1747863039538,-151.0,0.00025838,7]
[361881438,1747863039548,-151.0,0.00025838,7]
[361881439,1747863039558,-151.0,0.00025838,7]
[361881440,1747863039568,-151.0,0.00025838,7]
[361881441,1747863039577,-151.0,0.00025838,7]
[361881442,1747863039587,-151.0,0.00025838,7]
[361881443,1747863039596,-151.0,0.00025838,7]
[361881444,1747863039606,-151.0,0.00025838,7]
[361881445,1747863039616,-159.77541,0.00025838,7]
[361881446,1747863039625,-151.0,0.00025838,7]
[361881447,1747863039635,-151.0,0.00025838,7]
[361881448,1747863039644,-151.0,0.00025838,7]
[361881449,1747863039653,-151.0,0.00025838,7]
[361881453,1747863039807,-151.0,0.00025838,7]
[361881454,1747863039818,-151.0,0.00025838,7]
[361881455,1747863039828,-151.0,0.00025838,7]
[361881456,1747863039838,-151.0,0.00025838,7]
[361881457,1747863039849,-151.0,0.00025838,7]
[361881458,1747863039859,-151.0,0.00025838,7]
[361881459,1747863039868,-151.0,0.00025838,7]
[361881460,1747863039878,-187.84708,0.00025838,7]
[361881461,1747863039888,-314.5140147,0.00025838,7]
[361881462,1747863039898,-249.0,0.00025853,7]
[361881463,1747863039907,-151.0,0.00025853,7]
[361881464,1747863039916,-151.0,0.00025853,7]
[361881465,1747863039926,-212.41679935,0.00025853,3]
[361881466,1747863039936,-422.71322487,0.00025853,3]
[361881467,1747863039946,-370.0,0.00025862,2]
[361881468,1747863039956,-160.755261,0.00025863,3]
[361881469,1747863039965,-438.56,0.00025864,120]
[361881470,1747863039976,-151.0,0.00025865,7]
[361881471,1747863039987,-151.0,0.00025865,7]
[361881472,1747863039996,-151.0,0.00025865,7]
[361881473,1747863040007,-198.980649,0.00025865,7]
[361881474,1747863040016,-151.0,0.00025865,7]
[361881475,1747863040025,-151.0,0.00025865,7]
[361881476,1747863040035,-151.0,0.00025865,7]
[361881478,1747863040044,-151.0,0.00025865,7]
[361881480,1747863040054,-151.0,0.00025865,7]
[361881482,1747863040063,-191.810242,0.00025865,7]
[361881484,1747863040072,-151.0,0.00025865,2]
[361881486,1747863040082,-151.0,0.00025865,2]
[361881488,1747863040091,-151.0,0.00025865,2]
[361881490,1747863040100,-151.0,0.00025865,2]
[361881492,1747863040110,-235.183174,0.00025865,2]
[361881494,1747863040119,-151.0,0.00025865,7]
[361881496,1747863040129,-151.0,0.00025865,7]
[361881498,1747863040138,-151.0,0.00025865,7]
[361881500,1747863040148,-151.0,0.00025865,7]
[361881502,1747863040157,-151.0,0.00025865,7]
[361881504,1747863040166,-151.0,0.00025865,7]
[361881506,1747863040175,-151.0,0.00025865,7]
[361881508,1747863040185,-151.0,0.00025865,7]
[361881510,1747863040194,-151.0,0.00025865,7]
[361881512,1747863040204,-151.0,0.00025865,7]
[361881514,1747863040214,-151.0,0.00025865,7]
[361881516,1747863040223,-151.0,0.00025865,7]
[361881518,1747863040234,-151.0,0.00025865,7]
[361881520,1747863040243,-151.0,0.00025865,7]
[361881521,1747863040253,-151.0,0.00025865,7]
[361881522,1747863040263,-151.0,0.00025865,7]
[361881523,1747863040272,-151.0,0.00025865,7]
[361881524,1747863040281,-151.0,0.00025865,7]
[361881525,1747863040291,-198.643469,0.00025865,7]
[361881526,1747863040300,-151.0,0.00025865,7]
[361881527,1747863040310,-151.0,0.00025865,7]
[361881528,1747863040319,-151.0,0.00025865,7]
[361881529,1747863040329,-151.0,0.00025865,7]
[361881530,1747863040338,-154.04372,0.00025865,7]
[361881531,1747863040348,-151.0,0.00025865,7]
[361881532,1747863040357,-151.0,0.00025865,7]
[361881533,1747863040368,-201.88976,0.00025865,7]
[361881534,1747863040377,-151.0,0.00025865,7]
[361881535,1747863040387,-151.0,0.00025865,7]
[361881536,1747863040396,-151.0,0.00025865,7]
[361881537,1747863040406,-151.0,0.00025865,7]
[361881538,1747863040417,-151.0,0.00025865,7]
[361881539,1747863040427,-151.0,0.00025865,7]
[361881540,1747863040436,-151.0,0.00025865,7]
[361881541,1747863040447,-151.0,0.00025865,7]
[361881542,1747863040457,-178.445364,0.00025865,7]
[361881543,1747863040467,-314.5140147,0.0002587,3]
[361881544,1747863040477,-160.0,0.0002587,3]
[361881545,1747863040487,-12632.03537992,0.0002587,3]
[361881546,1747863040496,-160.0,0.0002587,3]
[361881547,1747863040505,-160.0,0.0002587,3]
[361881548,1747863040515,-500.0,0.00025873,2]
[361881549,1747863040524,-600.0,0.00025873,2]
[361881550,1747863040534,-150.0,0.00025873,2]
[361881551,1747863040543,-500.0,0.00025873,2]
[361881552,1747863040553,-435.0,0.00025874,120]
[361881553,1747863040562,-151.0,0.00025884,7]
[361881554,1747863040572,-151.0,0.00025884,7]
[361881555,1747863040581,-151.0,0.00025884,7]
[361881556,1747863040590,-151.0,0.00025884,7]
[361881557,1747863040600,-196.916137,0.00025884,7]
[361881558,1747863040610,-151.0,0.00025884,7]
[361881559,1747863040620,-151.0,0.00025884,7]
[361881560,1747863040630,-158.482728,0.00025884,7]
[361881561,1747863040639,-158.482728,0.00025884,7]
[361881562,1747863040648,-158.482728,0.00025884,7]
[361881563,1747863040660,-158.482728,0.00025884,7]
[361881564,1747863040671,-158.482728,0.00025884,7]
[361881565,1747863040682,-151.0,0.00025884,7]
[361881566,1747863040691,-158.482728,0.00025884,7]
[361881568,1747863040702,-151.0,0.00025884,7]
[361881569,1747863040714,-158.482728,0.00025884,7]
[361881570,1747863040723,-151.0,0.00025884,7]
[361881571,1747863040733,-158.482728,0.00025884,7]
[361881572,1747863040744,-151.0,0.00025884,7]
[361881573,1747863040753,-151.0,0.00025884,7]
[361881574,1747863040763,-151.0,0.00025884,7]
[361881575,1747863040772,-158.482728,0.00025884,7]
[361881576,1747863040781,-158.482728,0.00025884,7]
[361881578,1747863040790,-158.482728,0.00025884,7]
[361881579,1747863040800,-158.482728,0.00025884,7]
[361881580,1747863040808,-158.482728,0.00025884,7]
[361881581,1747863040818,-158.482728,0.00025884,7]
[361881582,1747863040827,-158.482728,0.00025884,7]
[361881583,1747863040837,-158.482728,0.00025884,7]
[361881584,1747863040846,-158.482728,0.00025884,7]
[361881585,1747863040855,-158.482728,0.00025884,7]
[361881586,1747863040864,-158.482728,0.00025884,7]
[361881587,1747863040874,-158.48273796,0.00025884,7]
[361881588,1747863040883,-151.0,0.00025884,7]
[361881589,1747863040892,-170.86269,0.00025884,2]
[361881590,1747863040901,-170.86269,0.00025884,2]
[361881591,1747863040910,-170.86269,0.00025884,2]
[361881592,1747863040921,-170.86269,0.00025884,2]
[361881593,1747863040930,-170.86269,0.00025884,2]
[361881594,1747863040940,-170.86269,0.00025884,2]
[361881595,1747863040949,-170.86269,0.00025884,2]
[361881596,1747863040958,-170.86269,0.00025884,2]
[361881597,1747863040967,-170.86269,0.00025884,2]
[361881598,1747863040977,-170.86269,0.00025884,2]
[361881599,1747863040986,-170.86269,0.00025884,2]
[361881600,1747863040995,-170.86269,0.00025884,2]
[361881601,1747863041005,-170.86269,0.00025884,2]
[361881602,1747863041014,-170.86269,0.00025884,2]
[361881603,1747863041023,-170.86269,0.00025884,2]
[361881604,1747863041033,-170.86269,0.00025884,2]
[361881605,1747863041042,-170.86269,0.00025884,2]
[361881606,1747863041052,-170.86269,0.00025884,2]
[361881607,1747863041061,-170.86269,0.00025884,2]
[361881608,1747863041070,-170.862698,0.00025884,2]
[361881609,1747863041079,-151.0,0.00025884,7]
[361881610,1747863041089,-151.0,0.00025884,7]
[361881611,1747863041099,-151.0,0.00025884,7]
[361881612,1747863041108,-151.0,0.00025884,7]
[361881613,1747863041118,-151.0,0.00025884,7]
[361881614,1747863041127,-151.0,0.00025884,7]
[361881615,1747863041136,-151.0,0.00025884,7]
[361881616,1747863041145,-151.0,0.00025884,7]
[361881617,1747863041154,-151.0,0.00025884,7]
[361881618,1747863041163,-151.0,0.00025884,7]
[361881619,1747863041172,-151.0,0.00025884,7]
[361881620,1747863041181,-151.0,0.00025884,7]
[361881621,1747863041191,-151.0,0.00025884,7]
[361881622,1747863041200,-151.0,0.00025884,7]
[361881623,1747863041210,-151.0,0.00025884,7]
[361881624,1747863041220,-151.0,0.00025884,7]
[361881625,1747863041230,-151.0,0.00025884,7]
[361881626,1747863041239,-151.0,0.00025884,7]
[361881627,1747863041249,-151.0,0.00025884,7]
[361881628,1747863041258,-151.0,0.00025884,7]
[361881629,1747863041268,-231.826139,0.00025884,7]
[361881630,1747863041277,-225.91898,0.00025884,7]
[361881631,1747863041286,-225.91898,0.00025884,7]
[361881632,1747863041296,-225.91898,0.00025884,7]
[361881633,1747863041305,-225.91898,0.00025884,7]
[361881634,1747863041314,-225.91898,0.00025884,7]
[361881635,1747863041324,-225.91898,0.00025884,7]
[361881636,1747863041333,-225.91898,0.00025884,7]
[361881637,1747863041342,-225.91898,0.00025884,7]
[361881638,1747863041351,-225.91898,0.00025884,7]
[361881639,1747863041360,-225.91898,0.00025884,7]
[361881640,1747863041370,-225.91898,0.00025884,7]
[361881641,1747863041380,-225.91898,0.00025884,7]
[361881642,1747863041389,-225.91898,0.00025884,7]
[361881643,1747863041399,-225.91898,0.00025884,7]
[361881644,1747863041408,-225.91898,0.00025884,7]
[361881645,1747863041417,-225.91898,0.00025884,7]
[361881646,1747863041427,-225.91898,0.00025884,7]
[361881647,1747863041436,-225.91898,0.00025884,7]
[361881648,1747863041446,-225.91898,0.00025884,7]
[361881649,1747863041455,-225.918972,0.00025884,7]
[361881650,1747863041464,-205.755285,0.00025884,7]
[361881651,1747863041474,-151.0,0.00025884,7]
[361881652,1747863041484,-151.0,0.00025884,7]
[361881653,1747863041494,-151.0,0.00025884,7]
[361881654,1747863041503,-151.0,0.00025884,7]
[361881655,1747863041513,-420.059017,0.00025884,7]
[361881656,1747863041522,-420.059017,0.00025884,7]
[361881657,1747863041531,-420.059017,0.00025884,7]
[361881658,1747863041541,-420.059017,0.00025884,7]
[361881659,1747863041550,-420.059017,0.00025884,7]
[361881660,1747863041560,-420.059017,0.00025884,7]
[361881661,1747863041569,-420.059017,0.00025884,7]
[361881662,1747863041579,-420.059017,0.00025884,7]
[361881663,1747863041589,-420.059017,0.00025884,7]
[361881664,1747863041598,-420.059017,0.00025884,7]
[361881665,1747863041607,-420.059017,0.00025884,7]
[361881666,1747863041617,-420.059015,0.00025884,7]
[361881667,1747863041627,-52047.93051692,0.00025888,2]
[361881668,1747863041637,-41041.03626118,0.00025888,3]
[361881669,1747863041646,-420.059017,0.00025888,7]
[361881670,1747863041655,-420.059017,0.00025888,7]
[361881671,1747863041669,-420.059017,0.00025888,7]
[361881672,1747863041679,-420.059017,0.00025888,7]
[361881673,1747863041688,-420.059017,0.00025888,7]
[361881674,1747863041697,-420.059017,0.00025888,7]
[361881675,1747863041708,-420.059017,0.00025888,7]
[361881676,1747863041719,-420.059017,0.00025888,7]
[361881677,1747863041730,-151.0,0.00025888,7]
[361881678,1747863041741,-151.0,0.00025888,7]
[361881679,1747863041751,-151.0,0.00025888,7]
[361881680,1747863041760,-241157.74168843,0.00025888,20]
[361881681,1747863041969,176.17,0.00021917,2]
[361881682,1747863042001,430.0,0.00021917,2]
[361881683,1747863042076,578.96,0.00021917,2]
[361881684,1747863042104,-300.0,0.00022464,2]
[361881730,1747863050482,430.0,0.00021917,2]
[361881731,1747863050513,430.0,0.00022191,2]
[361881732,1747863053166,-130.0,0.00022464,2]
[361881733,1747863053176,-270.0,0.00022464,2]
[361881734,1747863053185,-430.0,0.00022465,2]
[361881735,1747863053195,-430.0,0.00022739,2]
[361881736,1747863053204,-430.0,0.00022739,2]
[361881737,1747863053213,-430.0,0.00023013,2]
[361881738,1747863053222,-430.0,0.00023013,2]
[361881739,1747863053231,-430.0,0.00023287,2]
[361881740,1747863053241,-430.0,0.00023287,2]
[361881741,1747863053251,-430.0,0.00023561,2]
[361881742,1747863053260,-574.0,0.00023561,2]
[361881743,1747863053271,-430.0,0.00023835,2]
[361881744,1747863053280,-430.0,0.00024109,2]
[361881745,1747863053290,-430.0,0.00024383,2]
[361881746,1747863053300,-430.0,0.00024657,2]
[361881747,1747863053310,-430.0,0.00024931,2]
[361881748,1747863053321,-430.0,0.00025205,2]
[361881749,1747863053330,-430.0,0.00025479,2]
[361881750,1747863053340,-701.35,0.00025753,2]
[361881751,1747863053350,-430.0,0.00025753,2]
[361881752,1747863053360,-2590.47628914,0.00025888,20]
[361881753,1747863053455,451.54,0.00021917,2]
[361881754,1747863053481,298.32954171,0.00021917,2]
[361881755,1747863053860,-141.11596321,0.00025888,20]
[361881756,1747863053872,-2155.49666894,0.00025888,20]
[361881757,1747863053884,-13282.20996062,0.00025888,20]
[361881758,1747863053910,430.0,0.00021917,2]
[361881759,1747863054050,240.0,0.00021917,2]
[361881760,1747863056646,430.0,0.00021917,2]
[361881761,1747863063773,430.0,0.00021917,2]
[361881762,1747863064061,478.88,0.00022191,2]
[361881763,1747863066879,430.0,0.00021917,2]
[361881764,1747863067029,470.0,0.00021917,2]
[361881765,1747863070734,475.47,0.00021917,2]
[361881766,1747863071068,475.47,0.00022191,2]
[361881767,1747863072331,430.0,0.00021917,2]
[361881768,1747863072590,430.0,0.00022191,2]
[361881771,1747863085518,430.0,0.00021917,2]
[361881772,1747863085610,430.0,0.00022191,2]
[361881774,1747863089414,430.0,0.00021917,2]
[361881775,1747863089652,198.22,0.00022191,2]
[361881776,1747863091383,430.0,0.00021917,2]
[361881777,1747863091636,430.0,0.00022191,2]
[361881778,1747863096799,430.0,0.00021917,2]
[361881779,1747863097070,430.0,0.00022191,2]
[361881780,1747863097306,430.0,0.00021917,2]
[361881781,1747863099489,430.0,0.00021917,2]
[361881782,1747863101246,430.0,0.00021917,2]
[361881783,1747863102314,409.40679874,0.00021917,2]
[361881784,1747863104988,430.0,0.00021917,2]
[361881785,1747863105242,430.0,0.00022191,2]
[361881786,1747863107162,430.0,0.00021917,2]
[361881787,1747863107429,430.0,0.00022191,2]
[361881788,1747863107892,500.0,0.00021916,2]
[361881789,1747863108187,500.0,0.00021916,2]
[361881790,1747863108496,182.04203704,0.00021916,2]
[361881791,1747863108977,430.0,0.00021917,2]
[361881792,1747863109244,430.0,0.00022191,2]
[361881793,1747863109486,430.0,0.00021917,2]
[361881794,1747863109753,430.0,0.00022191,2]
[361881795,1747863123759,430.0,0.00021917,2]
[361881796,1747863124011,430.0,0.00022191,2]
[361881797,1747863126221,430.0,0.00021917,2]
[361881798,1747863126456,430.0,0.00022191,2]
[361881799,1747863131539,430.0,0.00021917,2]
[361881800,1747863131793,430.0,0.00022191,2]
[361881801,1747863138373,500.0,0.00021917,2]
[361881802,1747863140559,430.0,0.00021917,2]
[361881803,1747863144180,430.0,0.00021917,2]
[361881804,1747863146044,430.0,0.00021917,2]
[361881819,1747863492669,162.339935,0.00013699,2]
[361881826,1747863947128,-949.0954467,0.00021171,2]
[361881829,1747864035197,-1568.88348565,0.00021171,2]
[361881830,1747864035235,-252.905771,0.00021601,2]
[361881831,1747864035274,-430.0,0.00021917,2]
[361881832,1747864035312,-430.0,0.00021917,2]
[361881833,1747864035352,-430.0,0.00021917,2]
[361881834,1747864035389,-430.0,0.00021917,2]
[361881835,1747864035427,-430.0,0.00021917,2]
[361881836,1747864035465,-430.0,0.00021917,2]
[361881837,1747864035503,-430.0,0.00021917,2]
[361881838,1747864035543,-430.0,0.00021917,2]
[361881839,1747864035579,-430.0,0.00021917,2]
[361881840,1747864035616,-430.0,0.00021917,2]
[361881841,1747864035653,-430.0,0.00021917,2]
[361881842,1747864035690,-430.0,0.00021917,2]
[361881843,1747864035727,-430.0,0.00021917,2]
[361881844,1747864035765,-430.0,0.00021917,2]
[361881845,1747864035803,-430.0,0.00021917,2]
[361881846,1747864035840,-430.0,0.00021917,2]
[361881847,1747864035876,-430.0,0.00021917,2]
[361881848,1747864035914,-430.0,0.00021917,2]
[361881849,1747864035951,-430.0,0.00021917,2]
[361881850,1747864035986,-430.0,0.00021917,2]
[361881851,1747864036021,-430.0,0.00021917,2]
[361881852,1747864036056,-430.0,0.00021917,2]
[361881853,1747864036093,-430.0,0.00021917,2]